bitfinex/quotes_SOLUSD_20250630
["timestamp","ask_amount","ask_price","bid_price","bid_amount"]
[1751271886001,5.11389124,150.01,149.97,5.11389124]
[1751271886201,5.11389124,150.02,149.97,5.11389124]
[1751271886910,5.3329778,150.01,149.97,5.11389124]
[1751271887111,5.11389124,150.0,149.96,1.5897]
[1751271887308,5.11389124,150.0,149.96,6.70359124]
[1751271887709,10.44686904,150.01,149.96,6.70359124]
[1751271887909,10.44686904,150.01,149.97,5.11389124]
[1751271888109,5.3329778,150.01,149.96,6.92440306]
[1751271888301,5.3329778,150.01,149.97,5.11389124]
[1751271888502,10.44686904,150.01,149.97,5.11389124]
[1751271889887,5.3329778,150.01,149.97,5.11389124]
[1751271890733,10.44651639,150.02,149.98,5.11389124]
[1751271891529,10.44651639,150.02,149.97,5.33438813]
[1751271891819,5.11389124,150.01,149.96,6.92432843]
[1751271892020,5.11389124,150.01,149.97,5.11389124]
[1751271892417,5.33262515,150.02,149.98,5.11389124]
[1751271892599,10.44651639,150.02,149.98,5.11389124]
[1751271894120,5.33262515,150.02,149.98,5.11389124]
[1751271894299,10.44651639,150.02,149.98,5.11389124]
[1751271899023,5.33262515,150.02,149.98,5.11389124]
[1751271899215,10.44651639,150.02,149.98,5.11389124]
[1751271900432,5.11389124,150.01,149.95,5.74]
[1751271900616,5.11389124,150.01,149.96,5.11389124]
[1751271901827,5.10239043,150.03,149.96,5.11389124]
[1751271902021,5.33262231,150.02,149.97,5.11389124]
[1751271902199,10.54651355,150.02,149.97,5.11389124]
[1751271903718,5.11389124,150.01,149.97,5.11389124]
[1751271903930,5.43262231,150.02,149.97,10.44816913]
[1751271904113,10.54651355,150.02,149.98,5.11389124]
[1751271904311,5.11389124,150.01,149.97,5.11389124]
[1751271904722,10.54651355,150.02,149.98,5.11389124]
[1751271905106,5.11389124,150.01,149.97,5.11389124]
[1751271905731,10.44691186,150.01,149.97,5.11389124]
[1751271906712,5.11389124,150.0,149.96,5.11389124]
[1751271907314,10.44742941,150.0,149.96,5.11389124]
[1751271909843,8.20116727,150.0,149.96,2.8676291]
[1751271913220,5.33353817,150.0,149.96,2.8676291]
[1751271913724,8.80640128,150.01,149.97,2.8676291]
[1751271913923,11.67403038,150.01,149.97,2.8676291]
[1751271914345,11.67403038,150.01,149.95,11.07508007]
[1751271914537,11.67403038,150.01,149.97,2.8676291]
[1751271916753,11.67403038,150.01,149.96,5.33466644]
[1751271917055,11.67403038,150.01,149.97,2.8676291]
[1751271918355,11.67403038,150.01,149.95,11.0749733]
[1751271918356,34.80640128,150.01,149.95,5.74]
[1751271918527,2.8676291,150.0,149.96,2.8676291]
[1751271919852,2.8676291,150.0,149.97,2.49385699]
[1751271920036,2.8676291,150.0,149.98,2.49385699]
[1751271920241,5.33368891,149.99,149.96,2.8676291]
[1751271920558,5.33368891,149.99,149.97,2.49373116]
[1751271920860,5.33368891,149.99,149.98,2.49373116]
[1751271922255,5.33333333,150.0,149.98,2.49373116]
[1751271922434,8.20096243,150.0,149.96,2.8676291]
[1751271922748,8.20096243,150.0,149.97,2.49356024]
[1751271923051,8.20096243,150.0,149.98,2.49356024]
[1751271923257,8.20096243,150.0,149.96,2.8676291]
[1751271923429,8.20096243,150.0,149.97,2.49346986]
[1751271923630,8.20096243,150.0,149.98,2.49346986]
[1751271923946,8.20096243,150.0,149.96,2.8676291]
[1751271924137,8.20096243,150.0,149.97,2.49346873]
[1751271924334,8.20096243,150.0,149.98,2.49346873]
[1751271924542,5.33333333,150.0,149.96,2.8676291]
[1751271924741,8.20096243,150.0,149.97,2.49351855]
[1751271925049,8.20096243,150.0,149.96,2.8676291]
[1751271926548,8.20096243,150.0,149.95,11.07503339]
[1751271926750,8.20096243,150.0,149.96,2.8676291]
[1751271927049,8.20096243,150.0,149.95,2.8676291]
[1751271927239,2.8676291,150.0,149.95,2.8676291]
[1751271928237,2.8676291,150.0,149.95,5.3349014]
[1751271928453,178.94094633,150.01,149.96,2.8676291]
[1751271928750,172.6,150.01,149.97,2.8676291]
[1751271929151,172.6,150.01,149.98,2.49393721]
[1751271929337,172.6,150.01,149.99,2.49393721]
[1751271929542,172.6,150.01,150.0,2.49393721]
[1751271929941,146.6,150.01,150.0,2.49393721]
[1751271930149,146.6,150.01,149.97,8.20187146]
[1751271930342,146.6,150.01,149.98,5.36224583]
[1751271930641,146.6,150.01,149.99,2.49461673]
[1751271930853,146.6,150.01,149.98,2.8676291]
[1751271931052,146.6,150.01,149.99,2.49461786]
[1751271931258,146.6,150.01,149.98,2.8676291]
[1751271931558,146.6,150.01,149.99,2.49491303]
[1751271931741,146.6,150.01,149.98,2.8676291]
[1751271932067,146.6,150.01,149.99,2.49491247]
[1751271932356,146.6,150.01,149.98,2.8676291]
[1751271932566,0.1,150.01,150.0,2.8676291]
[1751271932776,0.1,150.01,150.0,5.36269461]
[1751271934549,0.1,150.01,150.0,10.69602794]
[1751271945475,0.1,150.01,150.0,5.36269461]
[1751271946269,0.1,150.01,150.0,2.49506551]
[1751271946458,8.3006069,150.01,149.97,5.94]
[1751271946669,8.3006069,150.01,149.98,2.48783389]
[1751271946858,8.3006069,150.01,149.97,5.94]
[1751271947063,8.3006069,150.01,149.98,2.4879038]
[1751271947264,8.3006069,150.01,149.97,5.94]
[1751271947479,8.3006069,150.01,149.98,2.48792005]
[1751271947786,9.91314672,150.01,149.97,10.42016892]
[1751271947967,9.91314672,150.01,149.98,2.48788354]
[1751271948162,9.91314672,150.01,149.97,10.42016892]
[1751271948476,9.91314672,150.01,149.98,2.4879026]
[1751271948699,9.91314672,150.01,149.97,10.42016892]
[1751271948880,9.91314672,150.01,149.98,2.48793911]
[1751271949192,9.91314672,150.01,149.97,10.42016892]
[1751271949484,9.91314672,150.01,149.98,2.48795587]
[1751271949682,9.91314672,150.01,149.97,10.42016892]
[1751271949979,9.91314672,150.01,149.98,2.48795587]
[1751271950186,9.91314672,150.01,149.97,10.42016892]
[1751271950372,9.91314672,150.01,149.98,2.4879739]
[1751271950572,9.91314672,150.01,149.97,10.42016892]
[1751271950761,9.91314672,150.01,149.98,2.48797334]
[1751271950962,9.91314672,150.01,149.97,10.42016892]
[1751271951172,9.91314672,150.01,149.98,2.4879739]
[1751271951369,9.91314672,150.01,149.97,10.42016892]
[1751271951570,9.91314672,150.01,149.98,2.48799216]
[1751271951783,9.91314672,150.01,149.97,10.42016892]
[1751271951960,9.91314672,150.01,149.98,2.48799216]
[1751271952178,9.91314672,150.01,149.97,10.42016892]
[1751271952369,9.91314672,150.01,149.98,2.48803091]
[1751271952568,9.91314672,150.01,149.97,10.42016892]
[1751271952775,9.91314672,150.01,149.98,2.48803147]
[1751271952982,9.91314672,150.01,149.97,10.42016892]
[1751271953288,9.91314672,150.01,149.98,2.4880148]
[1751271953494,9.91314672,150.01,149.97,10.42016892]
[1751271953669,9.91314672,150.01,149.98,2.48813453]
[1751271953999,4.48016892,150.0,149.97,5.94]
[1751271956187,5.33368891,149.99,149.97,5.94]
[1751271958696,9.81385783,149.99,149.97,5.94]
[1751271961984,4.48016892,149.98,149.97,5.94]
[1751271962375,5.33368891,149.99,149.97,5.94]
[1751271962597,4.48016892,149.98,149.97,5.94]
[1751271962891,9.81421345,149.98,149.97,0.2]
[1751271963795,5.33404453,149.98,149.97,0.2]
[1751271964679,9.81392039,149.99,149.97,0.2]
[1751271966212,5.33375147,149.99,149.97,0.2]
[1751271970800,151.8333995,150.0,149.97,3.0678706]
[1751271971016,154.7012701,150.0,149.97,0.2]
[1751271971692,2.8678706,149.98,149.97,0.2]
[1751271972832,8.20191513,149.98,149.97,0.2]
[1751271973911,9.81668444,149.98,149.97,0.2]
[1751271978034,5.33404453,149.98,149.97,0.2]
[1751271978324,9.81668444,149.98,149.97,0.2]
[1751271979010,35.81668444,149.98,149.97,0.2]
[1751271983845,31.33404453,149.98,149.97,0.2]
[1751271984027,35.81668444,149.98,149.97,0.2]
[1751271986541,31.33404453,149.98,149.97,0.2]
[1751271986726,35.81668444,149.98,149.97,0.2]
[1751271990046,31.33404453,149.98,149.97,0.2]
[1751271990237,35.81668444,149.98,149.97,0.2]
[1751271993829,34.2027195,149.98,149.97,0.2]
[1751271994736,8.80793446,149.99,149.97,0.2]
[1751271994940,3.47416094,149.99,149.97,0.2]
[1751271997124,154.70209054,150.0,149.97,0.2]
[1751271997323,155.30541487,150.0,149.97,0.2]
[1751271997727,0.1,150.01,149.99,2.86867497]
[1751271999224,0.1,150.01,150.0,4.98609974]
[1751272003169,0.1,150.01,150.0,7.85477471]
[1751272003661,0.1,150.01,150.0,13.18810804]
[1751272010347,0.1,150.01,150.0,8.2020083]
[1751272017387,0.1,150.01,150.0,2.86867497]
[1751272018265,0.1,150.01,150.0,8.2020083]
[1751272020457,0.1,150.01,150.0,5.53333333]
[1751272020659,0.1,150.01,150.0,8.4020083]
[1751272023874,0.1,150.01,150.0,0.2]
[1751272027982,0.1,150.01,150.0,3.06867497]
[1751272028158,0.1,150.01,150.0,0.2]
[1751272032267,0.1,150.01,150.0,3.06867497]
[1751272032463,0.1,150.01,150.0,8.4020083]
[1751272036476,0.1,150.01,150.0,3.06867497]
[1751272037794,0.1,150.01,150.0,8.4020083]
[1751272038873,0.1,150.01,150.0,3.06867497]
[1751272039794,0.1,150.01,150.0,5.31763179]
[1751272040377,0.1,150.01,150.0,0.2]
[1751272040577,0.1,150.01,150.0,5.31763179]
[1751272042300,0.1,150.01,150.0,0.2]
[1751272042495,0.1,150.01,150.0,5.31763179]
[1751272042796,0.1,150.01,150.0,0.2]
[1751272045602,0.1,150.01,150.0,5.31763179]
[1751272050409,0.1,150.01,150.0,0.2]
[1751272052700,0.1,150.01,150.0,5.31763179]
[1751272054513,0.1,150.01,150.0,10.65096512]
[1751272058108,0.1,150.05,150.0,10.65096512]
[1751272058292,0.1,150.05,150.02,5.11763179]
[1751272058485,0.1,150.05,150.03,5.11763179]
[1751272058689,0.1,150.05,150.04,5.11763179]
[1751272059407,0.1,150.05,150.03,5.11763179]
[1751272059911,0.1,150.05,150.03,3.27406923]
[1751272061907,0.1,150.05,150.03,8.60631916]
[1751272063814,0.1,150.05,150.04,3.27406923]
[1751272066917,0.1,150.05,150.03,3.34072223]
[1751272067503,0.1,150.05,150.03,0.066653]
[1751272067790,3.27406923,150.04,150.03,0.066653]
[1751272067995,8.70565303,150.05,150.03,0.066653]
[1751272071024,3.27406923,150.04,150.03,0.066653]
[1751272071618,8.60598072,150.04,150.03,0.066653]
[1751272073011,5.33191149,150.04,150.03,0.066653]
[1751272088248,8.90314388,150.05,150.03,0.066653]
[1751272089650,0.1,150.05,150.03,3.34072223]
[1751272090120,0.1,150.05,150.04,3.27406923]
[1751272091518,0.1,150.05,150.04,8.97406923]
[1751272092363,0.1,150.05,150.04,14.30598072]
[1751272096979,0.1,150.05,150.04,32.95562958]
[1751272098261,0.1,150.05,150.04,34.60212958]
[1751272109208,0.1,150.05,150.04,28.90212958]
[1751272109496,0.1,150.05,150.04,61.58212958]
[1751272110502,0.1,150.08,150.05,18.64964886]
[1751272110702,0.1,150.08,150.07,3.27406923]
[1751272112303,0.1,150.08,150.07,8.60491483]
[1751272113106,0.1,150.08,150.06,35.58516029]
[1751272113282,0.1,150.08,150.07,3.27406923]
[1751272114871,0.1,150.08,150.07,8.60491483]
[1751272123604,0.1,150.08,150.05,5.33155614]
[1751272123803,0.1,150.08,150.07,3.27406923]
[1751272124715,0.1,150.08,150.07,8.60491483]
[1751272128684,0.1,150.08,150.04,5.7]
[1751272128916,0.1,150.08,150.06,3.27406923]
[1751272129213,0.1,150.08,150.07,3.27406923]
[1751272136122,0.1,150.08,150.07,8.60491483]
[1751272147021,0.1,150.08,150.07,35.56491483]
[1751272147211,0.1,150.09,150.07,35.56491483]
[1751272147415,0.1,150.09,150.08,3.27406923]
[1751272147607,0.1,150.09,150.08,8.26587367]
[1751272147808,0.1,150.09,150.08,4.99180444]
[1751272148024,0.1,150.09,150.08,13.96587367]
[1751272148206,0.1,150.09,150.08,19.29636407]
[1751272151628,0.1,150.09,150.08,14.30455963]
[1751272153638,0.1,150.09,150.08,54.36083655]
[1751272157211,0.1,150.1,150.08,41.26455963]
[1751272157411,0.1,150.1,150.09,3.27406923]
[1751272158736,0.1,150.1,150.09,8.97406923]
[1751272159227,0.1,150.1,150.09,14.30420448]
[1751272171242,0.1,150.1,150.09,11.03013525]
[1751272171650,0.1,150.1,150.09,14.30420448]
[1751272171849,0.1,150.1,150.09,8.97406923]
[1751272178560,0.1,150.1,150.09,14.30420448]
[1751272186967,0.1,150.12,150.09,14.30420448]
[1751272187163,0.1,150.12,150.1,3.27406923]
[1751272187768,0.1,150.12,150.09,14.30420448]
[1751272187969,0.1,150.12,150.09,5.68]
[1751272190159,0.1,150.12,150.09,8.95406923]
[1751272192986,0.1,150.12,150.1,3.27406923]
[1751272196172,0.1,150.12,150.1,8.60383946]
[1751272196388,0.1,150.12,150.1,3.27406923]
[1751272199195,0.1,150.12,150.09,8.95406923]
[1751272200496,0.1,150.12,150.1,3.27406923]
[1751272200784,0.1,150.12,150.09,8.95406923]
[1751272200990,0.1,150.12,150.09,9.15406923]
[1751272201188,0.1,150.12,150.1,3.27406923]
[1751272201377,0.1,150.12,150.09,5.88]
[1751272201576,3.37406923,150.12,150.09,5.88]
[1751272202596,0.1,150.12,150.09,5.88]
[1751272202781,3.27406923,150.11,150.09,5.88]
[1751272203096,0.1,150.12,150.09,5.88]
[1751272203396,3.37406923,150.12,150.09,5.88]
[1751272204287,0.1,150.12,150.09,5.88]
[1751272206086,5.42908316,150.12,150.09,5.88]
[1751272206403,8.70315239,150.12,150.09,5.88]
[1751272207303,5.42908316,150.12,150.09,5.88]
[1751272208293,0.1,150.12,150.09,5.88]
[1751272209185,5.42910039,150.12,150.09,5.88]
[1751272209886,8.70316962,150.12,150.09,5.88]
[1751272210805,3.55839237,150.1,150.09,5.88]
[1751272211607,3.55839237,150.1,150.09,0.2]
[1751272212002,8.88817251,150.1,150.09,0.2]
[1751272216114,5.32978014,150.1,150.09,0.2]
[1751272216337,172.5,150.11,150.09,0.2]
[1751272216688,146.5,150.11,150.09,0.2]
[1751272218784,149.77406923,150.11,150.09,0.2]
[1751272220113,146.5,150.11,150.09,0.2]
[1751272220409,149.77406923,150.11,150.09,0.2]
[1751272226620,3.27406923,150.1,150.09,0.2]
[1751272226789,151.82952684,150.11,150.09,0.2]
[1751272226989,3.27406923,150.1,150.09,0.2]
[1751272227189,151.82952684,150.11,150.09,0.2]
[1751272227421,155.10359607,150.11,150.09,0.2]
[1751272227596,158.57381121,150.11,150.09,0.2]
[1751272228317,3.27406923,150.1,150.09,0.2]
[1751272231315,155.29974198,150.11,150.09,0.2]
[1751272231615,3.27406923,150.1,150.09,0.2]
[1751272235718,155.29974198,150.11,150.09,0.2]
[1751272235922,158.57381121,150.11,150.09,0.2]
[1751272240336,149.97021514,150.11,150.09,0.2]
[1751272240504,0.1,150.12,150.1,3.27406923]
[1751272240818,0.1,150.12,150.1,8.95406923]
[1751272242229,0.1,150.12,150.1,14.28377158]
[1751272243852,0.1,150.12,150.1,8.95406923]
[1751272244347,3.37406923,150.12,150.1,5.68]
[1751272245243,8.7032178,150.12,150.1,5.68]
[1751272245448,3.27406923,150.11,150.1,5.68]
[1751272248027,8.88781745,150.11,150.09,0.2]
[1751272248226,3.27406923,150.1,150.09,0.2]
[1751272248424,3.55839237,150.1,150.09,0.2]
[1751272249550,8.88817251,150.1,150.09,0.2]
[1751272255748,27.53782137,150.1,150.09,0.2]
[1751272261354,31.00999625,150.1,150.09,0.2]
[1751272263735,57.00999625,150.1,150.09,0.2]
[1751272267366,57.10999625,150.1,150.09,0.2]
[1751272287980,29.57217488,150.1,150.09,0.2]
[1751272290865,8.90195502,150.1,150.09,0.2]
[1751272292277,12.17602425,150.1,150.09,0.2]
[1751272300590,8.90195502,150.1,150.09,0.2]
[1751272300975,12.17602425,150.1,150.09,0.2]
[1751272303991,8.90195502,150.1,150.09,0.2]
[1751272304180,12.17602425,150.1,150.09,0.2]
[1751272306370,12.46034739,150.1,150.09,0.2]
[1751272309395,31.10999625,150.1,150.09,0.2]
[1751272309595,12.46034739,150.1,150.09,0.2]
[1751272311078,12.17602425,150.1,150.09,0.2]
[1751272314873,12.17602425,150.1,150.09,3.47406923]
[1751272314874,3.57217488,150.1,150.09,3.47406923]
[1751272315087,0.1,150.1,150.09,0.2]
[1751272316076,0.1,150.1,150.09,5.18374503]
[1751272316275,5.42978014,150.1,150.09,10.16749006]
[1751272316500,10.54301027,150.1,150.09,10.16749006]
[1751272316691,5.11323013,150.1,150.09,12.65946165]
[1751272317079,24.04720213,150.1,150.09,0.2]
[1751272317593,24.14720213,150.1,150.09,0.2]
[1751272318383,29.47698227,150.1,150.09,0.2]
[1751272318693,10.54301027,150.1,150.09,0.2]
[1751272323095,29.47698227,150.1,150.09,0.2]
[1751272327093,35.42299054,150.1,150.09,0.2]
[1751272327912,30.30976041,150.1,150.09,0.2]
[1751272328212,30.30976041,150.1,150.05,0.2]
[1751272328213,26.0,150.07,150.05,0.2]
[1751272328397,31.11323013,150.06,150.05,0.2]
[1751272328988,36.44443098,150.06,150.05,0.2]
[1751272329212,55.37840298,150.06,150.05,0.2]
[1751272334030,56.21140311,150.06,150.05,0.2]
[1751272334221,50.26517285,150.06,150.05,0.2]
[1751272334419,55.37840298,150.06,150.05,0.2]
[1751272335520,55.37840298,150.06,150.03,0.066653]
[1751272335521,18.933972,150.05,150.03,0.066653]
[1751272335831,24.04720213,150.04,150.03,0.066653]
[1751272336014,29.37911362,150.04,150.03,0.066653]
[1751272336558,18.933972,150.03,150.02,0.2]
[1751272336832,51.04720213,150.03,150.02,0.2]
[1751272338020,56.379469,150.03,150.02,0.2]
[1751272339441,82.379469,150.03,150.02,0.2]
[1751272339635,55.379469,150.03,150.02,0.2]
[1751272349043,50.26623887,150.03,150.02,0.2]
[1751272349245,55.379469,150.03,150.02,0.2]
[1751272355761,58.84784083,150.03,150.02,0.2]
[1751272361036,53.7346107,150.03,150.02,0.2]
[1751272361239,40.19819197,150.03,150.02,0.2]
[1751272365668,40.29819197,150.03,150.02,0.2]
[1751272366174,35.18496184,150.03,150.02,0.2]
[1751272366372,40.29819197,150.03,150.02,0.2]
[1751272370050,34.68160196,150.03,150.02,0.2]
[1751272374471,40.01386883,150.03,150.02,0.2]
[1751272375972,14.01386883,150.03,150.02,0.2]
[1751272377861,8.9006387,150.03,150.02,0.2]
[1751272378184,14.01386883,150.03,150.02,0.2]
[1751272378476,3.56837183,150.03,150.02,0.2]
[1751272378675,0.1,150.03,150.02,0.2]
[1751272379959,0.1,150.03,150.02,5.31323013]
[1751272380371,0.1,150.03,150.02,7.80664035]
[1751272381164,0.1,150.03,150.02,14.77226266]
[1751272381361,31.21323013,150.03,150.02,2.69341022]
[1751272381569,31.49755327,150.03,150.02,0.2]
[1751272382169,36.82982014,150.03,150.02,2.69366637]
[1751272382481,36.82982014,150.03,150.02,0.2]
[1751272383497,39.30164155,150.03,150.02,0.2]
[1751272383864,34.18841142,150.03,150.02,0.2]
[1751272384161,39.30164155,150.03,150.02,0.2]
[1751272385056,39.01731841,150.03,150.02,0.2]
[1751272388185,33.90408828,150.03,150.02,0.2]
[1751272388680,39.01731841,150.03,150.02,0.2]
[1751272392083,13.01731841,150.03,150.02,0.2]
[1751272397890,57.95129041,150.03,150.02,0.2]
[1751272399209,58.99129041,150.03,150.02,0.2]
[1751272400600,62.45796577,150.03,150.02,0.2]
[1751272400993,57.34473564,150.03,150.02,0.2]
[1751272401299,35.41796577,150.03,150.02,0.2]
[1751272405704,32.94614436,150.03,150.02,0.2]
[1751272406082,35.41803092,150.03,150.02,0.2]
[1751272407296,61.4176398,150.03,150.02,0.2]
[1751272407487,42.76799094,150.03,150.02,0.2]
[1751272411602,42.4836678,150.03,150.02,0.2]
[1751272415397,42.76799094,150.03,150.02,0.2]
[1751272416994,61.4176398,150.03,150.02,0.2]
[1751272418109,40.53086993,150.03,150.01,0.2]
[1751272418301,55.47149544,150.02,150.01,0.2]
[1751272418499,60.58472557,150.02,150.01,0.2]
[1751272418694,55.47149544,150.02,150.01,0.2]
[1751272418907,33.58472557,150.02,150.01,0.2]
[1751272419610,52.51869757,150.02,150.01,0.2]
[1751272419809,47.40546744,150.02,150.01,0.2]
[1751272420114,52.51869757,150.02,150.01,0.2]
[1751272420300,57.85131988,150.02,150.01,0.2]
[1751272420499,38.91734788,150.02,150.01,0.2]
[1751272420702,39.20167102,150.02,150.01,0.2]
[1751272421096,36.73017558,150.02,150.01,0.2]
[1751272421897,55.37982444,150.02,150.01,0.2]
[1751272422097,50.26659431,150.02,150.01,0.2]
[1751272422312,55.37982444,150.02,150.01,0.2]
[1751272429206,31.61694545,150.02,150.01,0.2]
[1751272429720,36.73017558,150.02,150.01,0.2]
[1751272433618,31.61694545,150.02,150.01,0.2]
[1751272433820,36.73017558,150.02,150.01,0.2]
[1751272437030,31.61694545,150.02,150.01,0.2]
[1751272437230,36.73017558,150.02,150.01,0.2]
[1751272441940,55.37982444,150.02,150.01,0.2]
[1751272444819,49.55982444,150.02,150.01,0.2]
[1751272447643,49.65982444,150.02,150.01,0.2]
[1751272447840,47.41451442,150.02,150.01,0.2]
[1751272457150,44.54659431,150.02,150.01,0.2]
[1751272457450,86.00619486,150.02,150.01,0.2]
[1751272462251,65.82619486,150.02,150.01,0.2]
[1751272462557,66.65941709,150.02,150.01,0.2]
[1751272462739,18.933972,150.01,150.0,0.2]
[1751272462930,33.27357255,150.01,150.0,0.2]
[1751272463136,44.933972,149.99,149.98,0.2]
[1751272463336,74.94189211,149.99,149.98,0.2]
[1751272464551,80.27558102,149.99,149.98,0.2]
[1751272468745,77.40766091,149.99,149.98,0.2]
[1751272468943,80.27558102,149.99,149.98,0.2]
[1751272474969,146.5,149.97,149.95,0.2]
[1751272475168,146.5,149.96,149.95,0.2]
[1751272475374,168.30189211,149.96,149.95,0.2]
[1751272476670,173.63664804,149.96,149.95,0.2]
[1751272479558,176.89817762,149.96,149.95,0.2]
[1751272480871,30.39817762,149.96,149.95,0.2]
[1751272481455,57.51817762,149.96,149.95,0.2]
[1751272481775,0.28432314,149.91,149.87,1.3991385]
[1751272482067,2.86792011,149.88,149.87,1.3991385]
[1751272482873,8.48984666,149.88,149.87,1.3991385]
[1751272483553,38.61117596,149.88,149.87,1.3991385]
[1751272483764,36.73183614,149.88,149.87,1.3991385]
[1751272483963,59.38061434,149.88,149.87,1.3991385]
[1751272484164,54.88939254,149.88,149.87,1.3991385]
[1751272484370,80.88939254,149.88,149.87,1.3991385]
[1751272484569,85.38061434,149.88,149.87,1.3991385]
[1751272485059,58.24061434,149.88,149.87,1.3991385]
[1751272485454,26.0,149.85,149.82,1.6589]
[1751272485659,4.4912218,149.83,149.8,6.3282]
[1751272485870,4.4912218,149.81,149.8,6.3282]
[1751272486265,9.83135924,149.81,149.78,7.3221]
[1751272486470,4.4912218,149.79,149.78,7.3221]
[1751272486650,4.4912218,149.8,149.78,7.3221]
[1751272486854,5.34013744,149.81,149.78,7.3221]
[1751272487070,4.4912218,149.81,149.78,7.3221]
[1751272487578,4.4912218,149.81,149.78,1.5221]
[1751272487765,5.33938463,149.83,149.76,7.9302]
[1751272487766,4.4912218,149.79,149.76,7.9302]
[1751272487967,4.4912218,149.77,149.76,1.6238]
[1751272488755,5.62488438,149.8,149.76,1.6238]
[1751272488956,4.4912218,149.8,149.76,6.1150218]
[1751272489169,4.4912218,149.8,149.76,1.6238]
[1751272489375,4.4912218,149.79,149.76,1.6238]
[1751272489568,30.4912218,149.77,149.72,6.1545]
[1751272489757,26.28432314,149.77,149.76,0.06208092]
[1751272489959,30.77554494,149.77,149.76,0.06208092]
[1751272490375,36.1170686,149.77,149.76,0.06208092]
[1751272490759,30.4912218,149.77,149.76,0.06208092]
[1751272491978,30.4912218,149.77,149.69,13.36074249]
[1751272491979,18.64964886,149.76,149.61,1.5927]
[1751272492157,26.0,149.71,149.67,0.06211892]
[1751272492359,4.4912218,149.68,149.67,0.06211892]
[1751272492555,26.0,149.71,149.67,0.06211892]
[1751272492778,30.4912218,149.71,149.67,0.06211892]
[1751272493094,0.28432314,149.75,149.67,4.55334072]
[1751272493273,4.4912218,149.73,149.68,4.4912218]
[1751272493474,26.0,149.73,149.69,6.1420218]
[1751272493693,30.4912218,149.75,149.71,4.4912218]
[1751272493877,4.4912218,149.76,149.72,4.4912218]
[1751272494082,4.4912218,149.76,149.7,5.8]
[1751272494318,4.4912218,149.72,149.7,5.8]
[1751272494480,31.34272866,149.74,149.7,5.8]
[1751272494773,4.4912218,149.72,149.7,5.8]
[1751272495278,31.34272866,149.74,149.7,5.8]
[1751272495884,26.0,149.74,149.7,5.8]
[1751272496383,30.4912218,149.74,149.7,10.2912218]
[1751272496685,30.4912218,149.74,149.69,6.99485632]
[1751272496686,4.4912218,149.71,149.69,1.6508]
[1751272496884,4.4912218,149.7,149.67,0.08981474]
[1751272497086,4.4912218,149.69,149.67,0.08981474]
[1751272497700,4.4912218,149.7,149.67,0.08981474]
[1751272498566,4.4912218,149.69,149.67,0.08981474]
[1751272498762,26.0,149.71,149.67,0.08981474]
[1751272498763,196.3251938,149.68,149.67,0.08981474]
[1751272499080,30.4912218,149.68,149.67,0.08981474]
[1751272499492,26.0,149.68,149.67,0.08981474]
[1751272499697,8.0017,149.75,149.67,0.08981474]
[1751272499870,4.4912218,149.7,149.67,0.08981474]
[1751272500274,4.4912218,149.69,149.67,0.08981474]
[1751272500694,4.4912218,149.68,149.67,0.08981474]
[1751272500990,86.39682789,149.68,149.67,0.08981474]
[1751272501168,86.39682789,149.68,149.57,7.1991385]
[1751272501169,26.0,149.64,149.57,1.3991385]
[1751272501369,4.4912218,149.59,149.57,1.3991385]
[1751272502083,27.58,149.63,149.57,1.3991385]
[1751272502290,4.4912218,149.6,149.57,1.3991385]
[1751272502683,31.34663669,149.63,149.57,1.3991385]
[1751272502890,4.4912218,149.61,149.57,6.74775979]
[1751272503066,4.4912218,149.61,149.57,1.3991385]
[1751272503265,26.0,149.63,149.57,11.2389823]
[1751272503565,30.4912218,149.63,149.58,4.4912218]
[1751272504174,26.0,149.62,149.57,1.3991385]
[1751272504378,4.4912218,149.6,149.57,1.3991385]
[1751272504689,4.4912218,149.61,149.57,1.3991385]
[1751272504865,3.4828168,149.64,149.59,4.4912218]